Cogmind - Beta 13 @@@ ROGUE MODE // 2024.04.15 @ 18:35:12 Player: Perseus Result: Destroyed 0b10! Performance ------------- Evolutions (9) 4500 Regions Visited (21) 4200 Robots Destroyed (348) 1740 Value Destroyed (14938) 14938 Prototype IDs (108) 2160 Alien Tech Used (13) 2600 Bonus (33284) 33284 TOTAL SCORE: 63422 Bonus ------- Triggered High Security 500 Triggered Max Security 2000 High Alert Combat Kills 2244 Follower Combat Kills 921 Met Warlord at Base 500 MAIN.C Attacked Warlord 500 Warlord Defense Kills 2792 Used Core Reset Matrix 3000 Met Warlord at Research 2000 Invited to Help at Command 2000 Met Sigix 2000 Activated Exoskeleton 3000 Escaped with Exo-Sigix 10000 Win 3000 Friendly Fire -1173 Cogmind --------- Core Integrity 583/1600 Matter 324/425 Energy 94/590 System Corruption 3% Temperature Cool (60) Movement Flying (14) Location Tau Ceti IV Orbit Parts ------- > --- POWER (2) -------- Particle Reactor > --- PROPULSION (9) --- Impulse Thruster Q-thruster Electron Diverter Electron Diverter Improved Q-thruster Improved Q-thruster Cooled Q-thruster Experimental Q-thruster > --- UTILITY (11) ----- 2N-1CE's Frost Array Large Storage Unit Structural Scanner Spectral Analyzer Experimental Signal Interpreter Improved Terrain Scan Processor Advanced Melee Analysis Suite Experimental Melee Analysis Suite Advanced Launcher Guidance Computer Graphene Brace > --- WEAPON (3) ------- Core Cannon Force Lance > --- INVENTORY (15) --- Advanced Weight Redist. System Structural Scanner Stasis Canceller Advanced Transmission Jammer Improved Shock Absorption System AEGIS Remote Shield Nova Cannon Plasma Lance Peak State ------------ > --- POWER ------------ Light Antimatter Reactor Multi-Antimatter Reactor > --- PROPULSION ------- Cooled Field Propulsion Drive Electron Diverter Electron Diverter Impulse Thruster Array Improved Q-thruster Improved Q-thruster Improved Q-thruster Experimental Q-thruster > --- UTILITY ---------- 2N-1CE's Frost Array Large Storage Unit Spectral Analyzer Experimental Sensor Array Experimental Signal Interpreter Advanced Terrain Scanner Improved Terrain Scan Processor Experimental Melee Analysis Suite Cloaking Device Advanced Hacking Suite System Mapper > --- WEAPON ----------- Advanced Micro-nuke Launcher Sigix Broadsword > --- INVENTORY -------- Advanced Weight Redist. System Stasis Canceller Advanced Transmission Jammer AEGIS Remote Shield Integrity Redistributor Nova Cannon Core Cannon Advanced Datajack Plasma Lance [Rating: 216] Favorites ----------- Power Constructs Engine Ion Engine Power Core Light Nuclear Core Reactor Constructs Propulsion Constructs Treads Improved Treads Wheel Compact Wheel Hover Unit Cooled Gravmag System Flight Unit Constructs Utility Large Storage Unit Device Armored Scrap Engine Storage Large Storage Unit Processor Advanced Signal Interpreter Hackware Advanced Hacking Suite Protection Centrium Light Armor Plating Artifact Phase Redirector Weapon Constructs Energy Gun Constructs Energy Cannon Advanced Plasma Cannon Ballistic Gun Heavy Assault Rifle Ballistic Cannon Constructs Launcher Advanced Micro-nuke Launcher Special Weapon Remote Datajack Impact Weapon Heavy Flail Slashing Weapon Sigix Broadsword Piercing Weapon Plasma Lance Special Melee Weapon Advanced Datajack Build | -11 -10 -10 -10 -7 -5 -5 -5 -5 -4 -4 -4 -4 -4 -3 -3 -3 -2 -2 -2 -1 -1 ------- Run | Yrd Mat Min Sub Rec Fac Upp Upp Zhi Pro Fac Upp Upp War Pro Res Qua Res Tes Sec Acc Com Slots Evolved 18 | . . . . . 10 . . . . 2 . . . . 2 . 2 . . 2 . Power 1 | . . . . . . . . . . . . . . . . . . . . 1 . Propulsion 7 | . . . . . 3 . . . . 1 . . . . 1 . 1 . . 1 . Utility 9 | . . . . . 6 . . . . 1 . . . . 1 . 1 . . . . Weapon 1 | . . . . . 1 . . . . . . . . . . . . . . . . Parts Attached 631 | 7 20 4 26 5 76 9 20 9 31 26 13 10 34 27 38 43 86 52 62 23 10 Power 15 | 1 1 2 4 . 3 . . . . . . . . . . . . . . 2 2 Engine 10 | 1 1 2 4 . 2 . . . . . . . . . . . . . . . . Core 1 | . . . . . 1 . . . . . . . . . . . . . . . . Reactor 4 | . . . . . . . . . . . . . . . . . . . . 2 2 Propulsion 86 | 2 8 . 3 1 11 4 1 4 . 4 . 2 6 3 9 3 13 5 1 2 4 Treads 21 | 2 8 . 2 1 3 3 1 1 . . . . . . . . . . . . . Leg . | . . . . . . . . . . . . . . . . . . . . . . Wheel 3 | . . . 1 . 2 . . . . . . . . . . . . . . . . Hover 13 | . . . . . 3 . . 2 . 4 . 1 2 . 1 . . . . . . Flight 49 | . . . . . 3 1 . 1 . . . 1 4 3 8 3 13 5 1 2 4 Utility 356 | 2 4 . 9 . 32 2 11 5 20 14 11 6 20 20 18 33 62 33 38 13 3 Device 263 | 1 . . 3 . 17 1 11 4 20 13 10 5 14 15 10 20 41 29 36 10 3 Storage 16 | 1 2 . . . 3 . . . . . 1 . 1 3 2 . 2 . 1 . . Processor 33 | . . . 1 . 7 1 . . . . . . 2 . 3 6 9 . 1 3 . Hackware 17 | . 1 . . . 2 . . . . 1 . . . . 1 2 6 4 . . . Protection 25 | . 1 . 5 . 3 . . 1 . . . 1 3 2 2 3 4 . . . . Artifact 2 | . . . . . . . . . . . . . . . . 2 . . . . . Weapon 174 | 2 7 2 10 4 30 3 8 . 11 8 2 2 8 4 11 7 11 14 23 6 1 Energy Gun 36 | 1 2 2 5 2 10 1 3 . 2 1 . . 1 3 . . 1 2 . . . Energy Cannon 27 | . . . 1 2 5 1 2 . . 1 . . . . . 2 1 2 8 1 1 Ballistic Gun 38 | 1 3 . 4 . 12 . 1 . 4 5 1 1 . 1 4 1 . . . . . Ballistic Cannon 1 | . 1 . . . . . . . . . . . . . . . . . . . . Launcher 18 | . . . . . 3 1 1 . 3 . . 1 3 . 1 1 1 1 1 1 . Special Weapon 13 | . 1 . . . . . 1 . 2 1 1 . 3 . 2 . . 1 1 . . Impact Weapon 3 | . . . . . . . . . . . . . 1 . 1 . 1 . . . . Slashing Weapon 7 | . . . . . . . . . . . . . . . . 1 2 . 3 1 . Piercing Weapon 19 | . . . . . . . . . . . . . . . 3 2 . 3 8 3 . Special Melee Weapon 12 | . . . . . . . . . . . . . . . . . 5 5 2 . . Unidentified Prototypes 58 | . . . . . 14 . . 4 . 2 . . 9 2 2 9 9 5 . 1 1 Parts Lost 58 | . . . 2 1 19 1 1 . 4 6 . 2 1 4 2 . . . 1 5 9 Power 9 | . . . . . 4 1 . . . . . . . . . . . . . 1 3 Propulsion 14 | . . . . 1 5 . . . 1 . . 2 1 . 1 . . . . . 3 Utility 20 | . . . . . 4 . . . 1 5 . . . 3 1 . . . 1 3 2 Weapon 15 | . . . 2 . 6 . 1 . 2 1 . . . 1 . . . . . 1 1 Highest Loss Streak 6 | . . . 1 1 3 4 1 . 2 3 . 2 1 2 2 . . . 1 4 6 To Critical Strikes . | . . . . . . . . . . . . . . . . . . . . . . Average Slot Usage (%) 83 | . 100 100 99 100 77 75 81 80 76 74 73 72 74 70 73 84 90 90 90 91 90 Engine 3 | . 14 14 13 11 3 . . . . . . . . . . . . . . . . Core 1 | . . . . . 1 4 5 5 5 4 3 . . . . . . . . . . Reactor 1 | . . . . . . . . . . . 1 5 5 5 4 4 4 4 4 8 7 Treads 10 | . 28 28 26 22 10 5 17 12 . . . . . . . . . . . . . Hover 2 | . . . . . 2 2 . 2 11 14 15 13 9 . . . . . . . . Flight 7 | . . . . . 5 2 . . . . . 1 7 15 19 23 29 30 30 32 31 Device 13 | . 2 . . . 8 17 17 16 21 20 22 25 25 19 15 14 17 11 11 16 14 Storage 6 | . 14 14 13 11 5 5 5 5 5 5 8 5 5 4 4 4 4 4 4 4 4 Processor 8 | . . . . . 12 15 17 17 11 9 5 5 5 5 8 14 13 13 13 20 24 Hackware 3 | . 11 . . . 1 1 . . . 4 5 5 5 3 2 13 9 18 17 2 . Protection 3 | . . 14 12 11 2 . . . . . . . . 4 5 . 1 . . . . Energy Gun 6 | . 13 14 14 21 5 5 5 5 2 2 . . 1 4 . . . . . . . Energy Cannon 2 | . . . . . 1 7 7 5 5 5 . . 2 . . . . . . . 1 Ballistic Gun 5 | . 11 14 16 22 9 2 1 . 6 6 5 5 . . 1 . . . . . . Ballistic Cannon 1 | . 2 . . . . . . . . . 4 5 2 4 . . . . . . . Naked Turns . | . . . . . . . . . . . . . . . . . . . . . . Heaviest Build 73 | 14 30 32 43 46 68 49 49 46 60 62 71 60 64 70 58 51 49 53 54 65 73 Greatest Support 106 | 40 46 46 46 43 106 90 90 90 52 80 80 80 86 71 60 54 62 62 66 72 75 Greatest Overweight (x) 4 | . . . . 1 4 1 . 1 1 1 . . 1 1 1 . . 1 1 . . Average Overweight (x) . | . . . . . . . . . . . . . . . . . . . . . . Largest Inventory Capacity 15 | 8 15 15 15 15 15 15 15 15 15 15 15 15 15 15 15 15 15 15 15 15 15 Average Capacity 14 | 6 10 15 15 15 14 15 15 15 15 15 15 15 15 14 12 15 15 15 15 15 15 Most Carried 15 | 8 14 15 15 15 15 15 15 15 15 15 15 15 15 15 15 15 15 15 15 15 15 Average Carried 13 | 4 9 14 14 14 11 14 14 14 13 13 13 14 14 13 11 14 14 14 14 13 12 Final Capacity 15 | 8 15 15 15 15 15 15 15 15 15 15 15 15 15 15 15 15 15 15 15 15 15 Final Carried 15 | 8 13 15 15 15 14 15 15 15 15 11 15 13 13 15 15 14 15 15 15 13 8 Scrap Engine Consumption 200 | . . . . . 84 11 2 7 19 15 13 7 23 12 7 . . . . . . Constructs Created 10 | . . . . . 7 1 . . 1 . . . 1 . . . . . . . . Constructs Modified 68 | . . . . . 20 5 1 2 7 7 6 4 9 5 2 . . . . . . Class Distribution -------------------- 22% | Scavenger-Gunner 20% | Mutant 12% | Scavenger-Tank 9% | Gunner 8% | Skirmisher 6% | Hacker-Ninja 4% | Wizard-Ninja Dominant Class ---------------- Mutant | -10/Materials Mutant | -10/Mines Mutant | -10/Subcaves Scavenger-Gunner | -7/Recycling Gunner | -5/Factory Gunner | -5/Upper Caves Scavenger-Gunner | -5/Upper Caves Scavenger-Gunner | -5/Zhirov Construct | -4/Proximity Caves Skirmisher | -4/Factory Skirmisher | -4/Upper Caves Skirmisher | -4/Upper Caves Scavenger-Skirmisher | -4/Warlord Scavenger-Tank | -3/Proximity Caves Scavenger-Scout | -3/Research Hacker-Ninja | -3/Quarantine Hacker-Ninja | -2/Research Wizard-Ninja | -2/Testing Wizard-Ninja | -2/Section 7 Alien-Ninja | -1/Access Alien-Scout | -1/Command Resources | -11 -10 -10 -10 -7 -5 -5 -5 -5 -4 -4 -4 -4 -4 -3 -3 -3 -2 -2 -2 -1 -1 ----------- Run | Yrd Mat Min Sub Rec Fac Upp Upp Zhi Pro Fac Upp Upp War Pro Res Qua Res Tes Sec Acc Com Matter Collected 10134 | 283 402 131 422 134 1215 356 255 100 779 319 302 593 579 572 365 572 888 638 681 395 153 Remotely . | . . . . . . . . . . . . . . . . . . . . . . Salvage Created 19159 | 161 846 271 379 267 1909 658 365 318 1632 579 1007 972 1218 1610 585 487 1497 1082 1913 1144 259 Parts 757 | 13 48 26 11 10 92 27 9 4 53 8 35 33 24 63 29 17 42 40 98 63 12 Haulers Intercepted 16 | . 2 . . . 2 . . . . 2 . . . . 1 2 5 . 2 . . Recyclers Shooed 3 | . 1 . . . 2 . . . . . . . . . . . . . . . . Parts Field Recycled . | . . . . . . . . . . . . . . . . . . . . . . Retrieved Matter . | . . . . . . . . . . . . . . . . . . . . . . Parts Self-Destructed 158 | . . . 15 . . 7 4 1 24 . 30 20 . 57 . . . . . . . Prevented 26 | . . . . . . 7 1 . 13 . . . . 5 . . . . . . . Kills | -11 -10 -10 -10 -7 -5 -5 -5 -5 -4 -4 -4 -4 -4 -3 -3 -3 -2 -2 -2 -1 -1 ------- Run | Yrd Mat Min Sub Rec Fac Upp Upp Zhi Pro Fac Upp Upp War Pro Res Qua Res Tes Sec Acc Com Combat Hostiles Destroyed 237 | . 10 9 9 3 39 6 6 . 26 4 12 13 20 30 2 . 3 3 19 20 3 Melee 15 | . . . . . 1 . . . . . . . . . 2 . 2 1 7 1 1 Guns 82 | . 8 9 9 3 18 2 1 . 13 . 4 4 3 8 . . . . . . . Cannons 67 | . 1 . . . 7 . 1 . 3 1 8 5 15 16 . . . . 8 . 2 AOE 66 | . . . . . 13 4 4 . 9 . . 4 2 4 . . 1 2 4 19 . Classes Destroyed 28 | 3 4 2 2 1 5 1 . . 2 . . 1 4 2 . . 1 . . . . Worker 11 | 1 2 1 . . 3 . . . . . . . . . . 1 . . 1 2 . Builder 12 | . . . . . 2 . . . . . . . . . 1 . . 1 2 6 . Tunneler 9 | 4 . 1 . . 1 . . . . . . . . . 1 . . . . 2 . Hauler 16 | . 2 . . . 2 . . . . 2 . . . . 1 2 5 . 2 . . Recycler 23 | 1 3 1 . . 1 . . . . . . . . . 1 1 5 7 2 1 . Minesweeper 1 | . . . . . . . . . 1 . . . . . . . . . . . . Mechanic 6 | . . . . . . . . . . . . . 1 . . 1 1 1 1 1 . Operator 5 | . 1 . . . . . . . . . . . . . . . . . 3 . 1 Drone 2 | . . . . . . . . . . . . . . 2 . . . . . . . Turret 2 | . . . 2 . . . . . . . . . . . . . . . . . . Watcher 25 | . 3 . . . 4 . . . . 1 . . . . 4 2 5 2 4 . . Swarmer 81 | . . 8 3 . 15 5 5 . 11 . 3 6 1 9 . . 1 . 5 9 . Saboteur 2 | . . . . . 1 . . . . . . . 1 . . . . . . . . Grunt 65 | . 10 . . 1 10 . . . 8 3 4 4 5 9 . . 1 . 4 6 . Brawler 12 | . . . . . . . . . 4 . 1 . 3 2 . . . . . 2 . Duelist 2 | . . . . . . . . . . . . . 1 . . . . . 1 . . Protector 6 | . . . . 1 . . . . . . . . 3 . . . . . . 2 . Sentry 15 | . . 1 . 1 1 1 1 . 2 1 2 1 . 1 . . . . 2 . 1 Demolisher 1 | . . . . . 1 . . . . . . . . . . . . . . . . Specialist 1 | . . . . . . . . . . . . . . 1 . . . . . . . Hunter 9 | . . . . . 2 . . . . . . 1 2 4 . . . . . . . Programmer 24 | . . . . . 9 . . . 1 . 2 . . 1 2 . . 3 5 1 . Behemoth 3 | . . . . . . . . . . . . 1 1 1 . . . . . . . Striker 1 | . . . . . . . . . . . . . 1 . . . . . . . . Executioner 6 | . . . . . . . . . . . . . 2 . . . . . 2 . 2 Subdweller 6 | . . . 6 . . . . . . . . . . . . . . . . . . Decomposer 6 | . . . . . . 3 . . 1 . . 2 . . . . . . . . . Packrat 7 | . . . . . . . 2 . . . 3 2 . . . . . . . . . Samaritan 7 | . . . . . . 3 . . 2 . . 2 . . . . . . . . . Thug 1 | . . . . . . . . . . . . . 1 . . . . . . . . Fireman 1 | . . . . . . . . . . . . . . . . . 1 . . . . Best Kill Streak 10 | 4 6 3 2 1 8 7 5 . 5 3 3 4 6 5 2 1 4 4 7 10 2 Combat Bots Only 8 | . 2 3 2 1 6 6 5 . 5 3 3 4 5 5 2 . 1 3 6 8 2 Max Kills in Single Turn 6 | 1 1 1 1 1 5 4 4 . 3 1 1 2 3 1 1 1 1 2 3 6 2 Gunslinging . | . . . . . . . . . . . . . . . . . . . . . . Exploded 5 | . . . . . 3 3 4 . 3 . . 2 2 1 . . 1 2 3 5 . Melee 1 | . . . . . 1 . . . . . . . . . 1 . 1 1 1 1 1 Uniques/NPCs Destroyed . | . . . . . . . . . . . . . . . . . . . . . . Combat | -11 -10 -10 -10 -7 -5 -5 -5 -5 -4 -4 -4 -4 -4 -3 -3 -3 -2 -2 -2 -1 -1 -------- Run | Yrd Mat Min Sub Rec Fac Upp Upp Zhi Pro Fac Upp Upp War Pro Res Qua Res Tes Sec Acc Com Hostile Shots Fired 1610 | . 69 30 92 26 245 15 16 . 136 103 33 90 57 237 48 . 2 28 81 151 151 Missed 757 | . 18 11 33 3 73 10 6 . 68 44 17 39 36 144 19 . 1 22 54 84 75 Damage Taken 16795 | . 731 151 732 233 3906 102 128 . 1196 1087 307 984 594 1584 627 . 88 90 630 1823 1802 Core 2438 | . 89 6 66 38 401 19 . . 274 153 49 96 165 160 70 . . 22 70 137 623 Absorbed by Shields 571 | . . . . . . . 40 . 19 70 . . 102 245 . . . . . . 95 Redirected to Shielding 99 | . . 1 9 . 25 . . . . . . 64 . . . . . . . . . Ignored by Resistances 176 | . . . . . 15 . . . 156 5 . . . . . . . . . . . Regen/Repaired (Parts) 5387 | . 104 . . . 843 166 19 112 184 344 440 227 415 671 78 298 85 29 223 1149 . Core Remaining (%) 58 | 100 . . . 20 . . . . 30 . . . . 43 . 94 . . 86 . 36 Volleys Fired 1030 | 13 73 22 100 24 140 86 56 12 100 32 34 55 99 118 13 . 2 13 15 17 6 Largest 4 | 2 2 2 4 4 4 3 3 1 3 3 2 2 2 2 2 . 1 1 1 1 1 Hottest 316 | 70 100 95 178 178 215 143 230 81 191 166 155 97 260 316 260 . 300 113 300 113 300 Shots Fired 1753 | 26 141 43 161 57 363 121 59 12 182 65 52 91 115 192 20 . 2 13 15 17 6 Gun 1123 | 26 123 43 156 50 306 56 12 12 136 40 20 37 21 73 12 . . . . . . Cannon 537 | . 14 . 5 7 49 63 45 . 37 22 30 51 69 114 4 . 1 5 13 2 6 Launcher 55 | . . . . . 8 2 2 . 6 . . 3 1 5 2 . 1 8 2 15 . Special 38 | . 4 . . . . . . . 3 3 2 . 24 . 2 . . . . . . Kinetic 865 | 13 72 21 59 28 221 33 10 . 117 28 48 75 3 125 12 . . . . . . Thermal 717 | 13 69 22 102 29 134 84 45 12 25 5 . 13 70 61 6 . 1 5 13 2 6 Explosive 47 | . . . . . 8 2 2 . 6 . . 3 . . . . 1 8 2 15 . Electromagnetic 72 | . . . . . . 2 2 . 31 29 2 . . 6 . . . . . . . Entropic 18 | . . . . . . . . . . . . . 18 . . . . . . . . Robot Hit Streak 18 | 5 12 7 18 13 16 14 12 11 10 11 9 10 12 13 4 . 1 2 4 5 3 Robot Miss Streak 5 | 2 3 3 3 5 4 2 1 1 5 4 1 3 3 3 2 . . 3 . 3 1 Penetration Max 6 | . . . . . 1 . . . 1 1 . 1 . . . . . . 6 . 1 Secondary Targets 3 | . . 1 . . 2 . . . . . . . . . . . . . . . . Max Gunslinging Chain 1 | . . 1 . . 1 . . . . . . . . . . . . . . . . Shots Hit Robots 1125 | 16 96 26 74 27 217 43 12 10 109 43 32 47 75 109 32 7 59 22 42 18 9 Core Hits 591 | 8 35 14 21 10 107 25 15 6 63 9 18 28 44 47 13 5 14 15 27 63 4 Critical Kills 14 | . . . . . 1 . 1 . 2 . 2 1 . . . . . . 5 . 2 Critical Parts Destroyed 20 | . . . . . 5 . . . 1 3 1 . 1 . . . 1 . 6 . 2 Critical Strikes 63 | . 6 . 2 . 11 1 1 1 3 3 3 1 1 5 3 . 3 . 13 1 5 Burn 19 | . 5 . 2 . 5 1 . 1 . . . . . 5 . . . . . . . Destroy 35 | . . . . . 6 . 1 . 3 3 3 1 . . . . 1 . 12 . 5 Blast 1 | . 1 . . . . . . . . . . . . . . . . . . . . Sever 3 | . . . . . . . . . . . . . . . . . 2 . 1 . . Impale 4 | . . . . . . . . . . . . . . . 3 . . . . 1 . Detonate 1 | . . . . . . . . . . . . . 1 . . . . . . . . Melee Attacks 329 | . . . . . . . . . . . . . 4 . 68 29 78 44 77 21 8 Impact 15 | . . . . . . . . . . . . . 4 . 10 1 . . . . . Slashing 156 | . . . . . . . . . . . . . . . . 4 47 36 50 19 . Piercing 126 | . . . . . . . . . . . . . . . 58 24 4 4 26 2 8 Sneak Attacks 83 | . . . . . . . . . . . . . . . 6 5 36 13 14 8 1 Combat Hostiles 1 | . . . . . . . . . . . . . . . . . . 1 . . . Follow-up Attacks 15 | . . . . . . . . . . . . . . . 4 . 1 1 8 . 1 Damage Inflicted 55688 | 174 1333 468 1292 501 6212 1160 721 296 3247 1621 1691 2690 4543 4843 1684 711 3839 2729 7227 7247 1459 Guns 14287 | 174 1127 373 1292 501 3604 803 282 296 1971 698 317 591 973 1168 117 . . . . . . Cannons 15394 | . 206 . . . 655 34 67 . 547 917 1374 1493 2886 3156 120 . 200 . 2700 39 1000 Explosions 12024 | . . 95 . . 1953 323 372 . 729 . . 606 684 519 . . 64 746 448 5485 . Melee 13977 | . . . . . . . . . . . . . . . 1447 711 3575 1983 4079 1723 459 Ramming 6 | . . . . . . . . . . 6 . . . . . . . . . . . Kinetic 14398 | 50 706 194 644 263 2777 453 239 . 1715 462 1612 1687 119 3360 117 . . . . . . Thermal 14857 | 124 627 274 648 238 2261 318 43 296 396 100 . 641 3475 1357 120 . 200 . 2700 39 1000 Explosive 9503 | . . . . . 1053 323 372 . 729 . . 283 . . . . 64 746 448 5485 . Electromagnetic 1998 | . . . . . 121 66 67 . 407 1053 79 79 . 126 . . . . . . . Impact 173 | . . . . . . . . . . . . . . . 173 . . . . . . Slashing 10816 | . . . . . . . . . . . . . . . . 239 3529 1983 3551 1514 . Piercing 2988 | . . . . . . . . . . . . . . . 1274 472 46 . 528 209 459 Entropic 949 | . . . . . . . . . . . . . 949 . . . . . . . . Highest Corruption 9 | . . . . 1 2 . . . . 9 9 9 9 . 6 3 . 1 3 2 3 Average Corruption 4 | . . . . 1 1 . . . . 5 9 9 9 . 5 2 . 1 1 1 2 Corruption Purged 16 | . . . . . 6 . . . . . . . . . 3 3 . . 4 . . Corruption Blocked 44 | . . . . . 5 . . . 6 1 . . . . . . 32 . . . . Effects 111 | . . . . 5 5 . . . . 4 36 29 1 . 18 2 . 4 . 5 2 Message Errors 26 | . . . . 1 . . . . . . 6 9 . . 7 . . 1 . 2 . Matter Fused 27 | . . . . 2 1 . . . . . 5 10 . . 5 1 . 1 . 1 1 Heat Flow Errors 11 | . . . . . 1 . . . . 1 5 . 1 . 1 . . 2 . . . Energy Discharges 10 | . . . . 2 1 . . . . . 2 1 . . 2 1 . . . 1 . Parts Rejected 3 | . . . . . . . . . . 1 . . . . . . . . . 1 1 Parts Fused 3 | . . . . . . . . . . . 1 2 . . . . . . . . . Data Loss (minor) 14 | . . . . . 1 . . . . . 7 4 . . 2 . . . . . . Data Loss (major) 8 | . . . . . 1 . . . . . 5 1 . . 1 . . . . . . Misfires 4 | . . . . . . . . . . . 2 2 . . . . . . . . . Alerts 2 | . . . . . . . . . . 1 1 . . . . . . . . . . Weapon Failures 3 | . . . . . . . . . . 1 2 . . . . . . . . . . Overload Shots . | . . . . . . . . . . . . . . . . . . . . . . Overflow Damage 5348 | . 1 . . . 235 . 26 . 10 17 217 79 227 170 271 149 958 625 1395 968 . Projectiles 1362 | . 1 . . . 15 . 26 . 1 17 217 68 227 170 6 . 120 . 485 9 . Explosions 487 | . . . . . 220 . . . 9 . . 11 . . . . 20 49 7 171 . Melee 3499 | . . . . . . . . . . . . . . . 265 149 818 576 903 788 . Knockbacks 31 | . 7 . . . . . . . 1 1 2 4 2 13 1 . . . . . . Impact 2 | . . . . . . . . . . 1 . . . . 1 . . . . . . Kinetic 26 | . 6 . . . . . . . 1 . 2 3 1 13 . . . . . . . Secondary 3 | . 1 . . . . . . . . . . 1 1 . . . . . . . . Self-Inflicted Damage 387 | . . . . . 55 . . . . 3 . 11 . 61 . . . . . 257 . Shots 9 | . . . . . 2 . . . . . . 1 . 1 . . . . . 5 . Rammed 1 | . . . . . . . . . . 1 . . . . . . . . . . . Targets Rammed 1 | . . . . . . . . . . 1 . . . . . . . . . . . Kicked . | . . . . . . . . . . . . . . . . . . . . . . Crushed . | . . . . . . . . . . . . . . . . . . . . . . Highest Temperature 436 | 100 342 84 144 350 372 21 87 297 281 126 223 . 208 316 436 179 265 272 332 230 282 Average Temperature 68 | 50 84 28 48 143 89 4 30 128 64 37 57 . 68 76 47 91 69 63 78 120 140 Received Heat Transfer 2330 | . 459 . 198 102 465 9 27 . 322 84 18 54 22 216 30 . . . 45 216 63 Effects 8 | . 1 . . 2 2 . . . . . . . . 1 . . . 1 1 . . Energy Bleed 4 | . 1 . . 1 1 . . . . . . . . . . . . 1 . . . Interference 3 | . . . . 1 1 . . . . . . . . 1 . . . . . . . Damage (minor) 1 | . . . . . . . . . . . . . . . . . . . 1 . . Siege Activations . | . . . . . . . . . . . . . . . . . . . . . . Robots Corrupted 5 | . . . . . . . . . . 4 . . . 1 . . . . . . . Combat Hostiles 4 | . . . . . . . . . . 3 . . . 1 . . . . . . . Parts Fried 15 | . . . . . . 1 . . . 6 . 2 2 2 2 . . . . . . Impact Corruptions 3 | . . . . . . . . . . . . . . . 3 . . . . . . Robots Melted 2 | . 1 . . . . . . . . . . . . 1 . . . . . . . Combat Hostiles 2 | . 1 . . . . . . . . . . . . 1 . . . . . . . Parts Melted 32 | 1 5 1 3 2 10 1 . . . . . . 6 3 . . . . . . . Heat Transferred 14991 | 370 2183 631 1263 520 3253 679 74 518 555 150 . 150 1178 3330 100 . . . . 37 . Parts Sabotaged 1 | . . . . . . . . . . . . . . . . . . . . 1 . Parts Stolen . | . . . . . . . . . . . . . . . . . . . . . . Parts Stripped . | . . . . . . . . . . . . . . . . . . . . . . Power Chain Reactions 4 | . . . . . . . . . . . . 3 . 1 . . . . . . . Alert | -11 -10 -10 -10 -7 -5 -5 -5 -5 -4 -4 -4 -4 -4 -3 -3 -3 -2 -2 -2 -1 -1 ------- Run | Yrd Mat Min Sub Rec Fac Upp Upp Zhi Pro Fac Upp Upp War Pro Res Qua Res Tes Sec Acc Com Peak Influence 3819 | 30 300 129 . 286 1544 . . . . 230 . . . . 468 232 256 418 2030 3819 2945 Initial 2461 | . 19 24 . 211 52 . . . . 150 . . . . 372 96 54 35 54 1217 2461 Average 316 | 12 70 75 . 159 472 . . . . 139 . . . . 296 139 114 227 459 2656 2659 Maximum Alert Level 5 | . 1 . . 1 4 . . . . 1 . . . . 2 1 1 2 5 5 5 Low Security (%) 53 | 100 96 100 . 54 17 . . . . 76 . . . . 22 89 76 28 7 . . Level 1 29 | . 3 . . 45 25 . . . . 23 . . . . 68 10 23 67 56 . . Level 2 10 | . . . . . 42 . . . . . . . . . 8 . . 3 27 . . Level 3 1 | . . . . . 10 . . . . . . . . . . . . . . . . Level 4 . | . . . . . 2 . . . . . . . . . . . . . . 3 . Level 5 . | . . . . . . . . . . . . . . . . . . . . . 37 High Security . | . . . . . . . . . . . . . . . . . . . . . 62 Max Security 3 | . . . . . . . . . . . . . . . . . . . 8 96 . Squads Dispatched 65 | . 2 . . . 17 . . . . 4 . . . . 4 3 . 3 8 23 1 Investigation 5 | . 1 . . . 2 . . . . . . . . . . 1 . 1 . . . Extermination 13 | . . . . . 4 . . . . 2 . . . . 2 1 . 2 2 . . Reinforcement 11 | . 1 . . . 5 . . . . 2 . . . . 2 . . . . . 1 Assault 33 | . . . . . 3 . . . . . . . . . . 1 . . 6 23 . Garrison 3 | . . . . . 3 . . . . . . . . . . . . . . . . Intercept . | . . . . . . . . . . . . . . . . . . . . . . Searches Triggered 1 | . . . . . . . . . . . . . . . 1 . . . . . . Construction Impeded 1 | . . . . . 1 . . . . . . . . . . . . . . . . Haulers Reinforced 4 | . . . . . 1 . . . . 1 . . . . 2 . . . . . . Active Scanning Responses . | . . . . . . . . . . . . . . . . . . . . . . Cargo Convoy Interrupts 1 | . . . . . 1 . . . . . . . . . . . . . . . . Stealth | -11 -10 -10 -10 -7 -5 -5 -5 -5 -4 -4 -4 -4 -4 -3 -3 -3 -2 -2 -2 -1 -1 --------- Run | Yrd Mat Min Sub Rec Fac Upp Upp Zhi Pro Fac Upp Upp War Pro Res Qua Res Tes Sec Acc Com Distress Signals 24 | . 2 . . . 3 . . . . 1 . . 1 . 3 . 9 1 . 2 2 Communications Jammed 57 | . . . . . . . . . . . . . . 2 3 1 7 . 44 . . Distress Signals 52 | . . . . . . . . . . . . . . . . 1 7 . 44 . . Times Spotted 616 | . 18 10 42 3 75 6 6 . 42 16 18 15 79 43 23 5 19 11 60 96 29 Peak Tracking Total 29 | . 4 3 7 1 9 5 5 . 9 5 7 4 16 6 6 1 4 4 29 29 17 Tactical Retreats 59 | . 2 . 3 . 6 . . . 9 3 1 . 5 5 7 . . 2 3 11 2 Traps | -11 -10 -10 -10 -7 -5 -5 -5 -5 -4 -4 -4 -4 -4 -3 -3 -3 -2 -2 -2 -1 -1 ------- Run | Yrd Mat Min Sub Rec Fac Upp Upp Zhi Pro Fac Upp Upp War Pro Res Qua Res Tes Sec Acc Com Traps Triggered 11 | . 1 . 1 . 1 . . . . . . . . . . . . . 3 1 4 Indirectly . | . . . . . . . . . . . . . . . . . . . . . . Trap Hack Attempts 12 | . . . . . . . . . . . . . . . . . . 7 5 . . Triggered . | . . . . . . . . . . . . . . . . . . . . . . Disarmed . | . . . . . . . . . . . . . . . . . . . . . . Reprogrammed 14 | . . . . . . . . . . . . . . . 2 4 . 7 1 . . Reused 11 | . . . . . . . . . 3 . . . . 4 . . . 4 . . . Traps Extracted . | . . . . . . . . . . . . . . . . . . . . . . Installed 8 | . . . . . . . . . 3 . . . . 5 . . . . . . . Triggered 27 | . . . . . 2 . . . 3 . . . 12 6 . . . 4 . . . Most Traps Carried 2 | . . . . . . . . . 2 1 1 1 1 2 . . . . . . . Objects Rigged 3 | . . . . . 3 . . . . . . . . . . . . . . . . Exploded 1 | . . . . . 1 . . . . . . . . . . . . . . . . Machines | -11 -10 -10 -10 -7 -5 -5 -5 -5 -4 -4 -4 -4 -4 -3 -3 -3 -2 -2 -2 -1 -1 ---------- Run | Yrd Mat Min Sub Rec Fac Upp Upp Zhi Pro Fac Upp Upp War Pro Res Qua Res Tes Sec Acc Com Machines Disabled 50 | . . 1 2 . 8 . . . 1 2 1 . 3 2 . 7 . 7 8 7 1 Max in Single Turn 4 | . . 1 1 . 4 . . . 1 1 1 . 1 2 . 1 . 1 2 2 1 Garrison Access 6 | . . . . . 1 . . . . . . . . . . 1 2 1 . 1 . Energy Cycler 1 | . . . . . . . . . . . . . . . . . . . . 1 . Machines Repaired . | . . . . . . . . . . . . . . . . . . . . . . Machines Dismantled . | . . . . . . . . . . . . . . . . . . . . . . Machines Sabotaged . | . . . . . . . . . . . . . . . . . . . . . . Overloaded Fab Kills . | . . . . . . . . . . . . . . . . . . . . . . Hacking | -11 -10 -10 -10 -7 -5 -5 -5 -5 -4 -4 -4 -4 -4 -3 -3 -3 -2 -2 -2 -1 -1 --------- Run | Yrd Mat Min Sub Rec Fac Upp Upp Zhi Pro Fac Upp Upp War Pro Res Qua Res Tes Sec Acc Com Machines Accessed 103 | . 9 . 1 12 12 . . 4 . 7 3 1 2 1 7 17 1 12 8 . 6 Terminals 62 | . 6 . . 6 6 . . . . 5 . . . 1 5 13 . 8 6 . 6 Fabricators 4 | . . . . . 1 . . . . 1 . . . . . . . 2 . . . Repair Stations 5 | . 1 . . . . . . . . . . . . . 1 1 1 . 1 . . Recycling Units 14 | . 2 . . 6 4 . . . . 1 . . . . 1 . . . . . . Scanalyzers 4 | . . . . . . . . . . . . . . . . 2 . 1 1 . . Garrison Access 3 | . . . . . 1 . . . . . . . . . . 1 . 1 . . . Total Hacks 277 | . 25 . 9 38 33 . . 16 . 13 10 1 5 6 14 37 3 37 21 . 9 Successful 177 | . 11 . 9 16 15 . . 16 . 8 10 1 5 6 7 22 2 28 20 . 1 Failed 99 | . 13 . . 22 18 . . . . 5 . . . . 7 15 1 9 1 . 8 Catastrophic 16 | . 3 . . . 5 . . . . . . . . . 2 2 . 1 . . 3 Database Lockouts 1 | . 1 . . . . . . . . . . . . . . . . . . . . Manual 109 | . 14 . . 17 17 . . . . 4 . . . 1 7 21 . 18 5 . 5 Terminals 156 | . 21 . . 15 14 . . . . 9 . . . 6 12 28 . 31 11 . 9 Fabricators 9 | . . . . . 3 . . . . 2 . . . . . . . 4 . . . Repair Stations 10 | . 2 . . . . . . . . . . . . . 1 2 3 . 2 . . Recycling Units 40 | . 2 . . 23 12 . . . . 2 . . . . 1 . . . . . . Scanalyzers 13 | . . . . . . . . . . . . . . . . 4 . 1 8 . . Garrison Access 8 | . . . . . 4 . . . . . . . . . . 3 . 1 . . . Terminal Hacks 106 | . 6 . 9 5 2 . . 16 . 3 10 1 5 6 5 14 . 16 7 . 1 Record 32 | . . . 8 . . . . 4 . . 9 . 4 6 . 1 . . . . . Part Schematic 9 | . . . . . . . . 4 . . . . . . 1 2 . 2 . . . Robot Analysis 10 | . 3 . . 1 . . . 4 . . . . . . . 1 . 1 . . . Prototype ID Bank 13 | . 1 . . 2 1 . . 4 . 1 . . . . 1 1 . 2 . . . Open Door 7 | . . . . . . . . . . . 1 1 1 . . 1 . . 3 . . Level Access Points 1 | . . . . . . . . . . . . . . . . . . . 1 . . Branch Access Points 3 | . . . . . 1 . . . . 1 . . . . 1 . . . . . . Machine Index 1 | . . . . . . . . . . . . . . . . . . 1 . . . Terminal Index 3 | . . . . 1 . . . . . . . . . . . . . 1 . . 1 Alert Level 1 | . . . . . . . . . . . . . . . . . . 1 . . . Unreport Threat 4 | . . . . . . . . . . . . . . . 1 2 . . 1 . . Locate Traps 6 | . 1 . . . . . . . . . . . . . . 2 . 3 . . . Reprogram Traps 4 | . . . . . . . . . . . . . . . 1 1 . 2 . . . Recall Investigation 1 | . . . . . . . . . . . . . . . . . . 1 . . . Recall Extermination 2 | . . . . . . . . . . . . . . . . 1 . 1 . . . Recall Assault 1 | . . . . . . . . . . . . . . . . 1 . . . . . Hauler Manifests 5 | . . . . 1 . . . . . 1 . . . . . 1 . 1 1 . . Registered Components 1 | . 1 . . . . . . . . . . . . . . . . . . . . Derelict Proto ID Bank 1 | . . . 1 . . . . . . . . . . . . . . . . . . Activate Exoskeleton 1 | . . . . . . . . . . . . . . . . . . . 1 . . Fabricator Hacks 4 | . . . . . . . . . . 1 . . . . . . . 3 . . . Network Status 1 | . . . . . . . . . . 1 . . . . . . . . . . . Load Schematic 1 | . . . . . . . . . . . . . . . . . . 1 . . . Build 2 | . . . . . . . . . . . . . . . . . . 2 . . . Repair Station Hacks 8 | . 2 . . . . . . . . . . . . . . 2 2 . 2 . . Scan Component 4 | . 1 . . . . . . . . . . . . . . 1 1 . 1 . . Repair 4 | . 1 . . . . . . . . . . . . . . 1 1 . 1 . . Recycling Unit Hacks 4 | . . . . 2 2 . . . . . . . . . . . . . . . . Retrieve Matter 1 | . . . . . 1 . . . . . . . . . . . . . . . . Retrieve Components 3 | . . . . 2 1 . . . . . . . . . . . . . . . . Scanalyzer 8 | . . . . . . . . . . . . . . . . 1 . . 7 . . Insert Component 4 | . . . . . . . . . . . . . . . . 1 . . 3 . . Analyze 4 | . . . . . . . . . . . . . . . . . . . 4 . . Garrison Access Hacks 2 | . . . . . 1 . . . . . . . . . . . . 1 . . . Seal Access 2 | . . . . . 1 . . . . . . . . . . . . 1 . . . Unauthorized Hacks 45 | . 3 . . 9 10 . . . . 4 . . . . 2 5 . 8 4 . . Terminals 25 | . 2 . . 2 3 . . . . 2 . . . . 2 4 . 7 3 . . Track 1 | . . . . . . . . . . . . . . . . . . . 1 . . Assimilate 8 | . . . . . . . . . . . . . . . . 2 . 5 1 . . Botnet 10 | . 1 . . 1 1 . . . . 1 . . . . 1 2 . 2 1 . . Detonate 1 | . . . . . 1 . . . . . . . . . . . . . . . . Disrupt 1 | . . . . . 1 . . . . . . . . . . . . . . . . Operators 4 | . 1 . . 1 . . . . . 1 . . . . 1 . . . . . . Fabricators 1 | . . . . . . . . . . 1 . . . . . . . . . . . Report 1 | . . . . . . . . . . 1 . . . . . . . . . . . Repair Stations . | . . . . . . . . . . . . . . . . . . . . . . Recycling Units 16 | . 1 . . 7 7 . . . . 1 . . . . . . . . . . . Monitor 2 | . . . . 1 1 . . . . . . . . . . . . . . . . Reject 8 | . . . . 4 4 . . . . . . . . . . . . . . . . Recyclers 3 | . . . . 1 1 . . . . 1 . . . . . . . . . . . Mask 2 | . . . . 1 1 . . . . . . . . . . . . . . . . Tunnel 1 | . 1 . . . . . . . . . . . . . . . . . . . . Scanalyzers 3 | . . . . . . . . . . . . . . . . 1 . 1 1 . . Researchers 3 | . . . . . . . . . . . . . . . . 1 . 1 1 . . Garrison Access . | . . . . . . . . . . . . . . . . . . . . . . Data Cores Recovered 2 | . . . . . . . . . . . . . . . . . . . 1 . 1 Used . | . . . . . . . . . . . . . . . . . . . . . . Hacking Detections 84 | . 8 . . 12 11 . . . . 7 . . . 1 7 16 1 11 4 . 6 Full Trace Events 5 | . . . . 1 2 . . . . . . . . . . 1 . 1 . . . Feedback Events 1 | . . . . 1 . . . . . . . . . . . . . . . . . Corruption 1 | . . . . 1 . . . . . . . . . . . . . . . . . Feedback Blocked . | . . . . . . . . . . . . . . . . . . . . . . Robot Schematics Acquired . | . . . . . . . . . . . . . . . . . . . . . . Robots Built . | . . . . . . . . . . . . . . . . . . . . . . Authchips . | . . . . . . . . . . . . . . . . . . . . . . Time . | . . . . . . . . . . . . . . . . . . . . . . Total Robot Build Rating . | . . . . . . . . . . . . . . . . . . . . . . Part Schematics Acquired 12 | . . . . . . . . 4 . . . . . . 1 2 . 2 3 . . Parts Built 2 | . . . . . . . . . . . . . . . . . . 2 . . . Authchips . | . . . . . . . . . . . . . . . . . . . . . . Time 176 | . . . . . . . . . . . . . . . . . . 176 . . . Total Part Build Rating 17 | . . . . . . . . . . . . . . . . . . 17 . . . Parts Repaired 4 | . 1 . . . . . . . . . . . . . . 1 1 . 1 . . Time 143 | . 32 . . . . . . . . . . . . . . 54 22 . 35 . . Parts Recycled . | . . . . . . . . . . . . . . . . . . . . . . Recycled Matter . | . . . . . . . . . . . . . . . . . . . . . . Retrieved Matter . | . . . . . . . . . . . . . . . . . . . . . . Retrieved Components 8 | . . . . 7 1 . . . . . . . . . . . . . . . . Parts Scanalyzed 3 | . . . . . . . . . . . . . . . . . . . 3 . . Part Schematics Acquired 3 | . . . . . . . . . . . . . . . . . . . 3 . . Parts Damaged 3 | . . . . . . . . . . . . . . . . . . . 3 . . Bothacking | -11 -10 -10 -10 -7 -5 -5 -5 -5 -4 -4 -4 -4 -4 -3 -3 -3 -2 -2 -2 -1 -1 ------------ Run | Yrd Mat Min Sub Rec Fac Upp Upp Zhi Pro Fac Upp Upp War Pro Res Qua Res Tes Sec Acc Com Used RIF Installer . | . . . . . . . . . . . . . . . . . . . . . . Robots Hacked 38 | . . . . . . . . . . 1 . . 8 . . . 26 3 . . . Non-combat 13 | . . . . . . . . . . 1 . . 2 . . . 10 . . . . Combat 25 | . . . . . . . . . . . . . 6 . . . 16 3 . . . Robot Hacks Applied 38 | . . . . . . . . . . 1 . . 8 . . . 26 3 . . . parse_system 37 | . . . . . . . . . . . . . 8 . . . 26 3 . . . find_chute 1 | . . . . . . . . . . 1 . . . . . . . . . . . Relay Couplers Released 5 | . . . . . . . . . . . . . . . . 3 1 . . 1 . Machine Destruction 5 | . . . . . . . . . . . . . . . . 3 1 . . 1 . Fabnet Peak Effective % . | . . . . . . . . . . . . . . . . . . . . . . Robots Rewired 15 | . . . . 5 . . . . 2 . 2 . 5 . . . . 1 . . . Allies Hacked 6 | . . . . . 3 . . . . . . . 1 . . . . 2 . . . Hacks Repelled . | . . . . . . . . . . . . . . . . . . . . . . Allies | -11 -10 -10 -10 -7 -5 -5 -5 -5 -4 -4 -4 -4 -4 -3 -3 -3 -2 -2 -2 -1 -1 -------- Run | Yrd Mat Min Sub Rec Fac Upp Upp Zhi Pro Fac Upp Upp War Pro Res Qua Res Tes Sec Acc Com Total Allies 24 | . . 2 . 5 . . . . 2 . 2 . 5 . . 2 . 5 1 . . Largest Group 6 | . . 2 2 5 5 . . . 2 2 2 2 5 . . 2 2 6 4 1 1 Highest-Rated Group 1275 | . . 56 56 108 108 . . . 77 77 79 79 288 . . 71 71 311 1275 1204 1204 Highest-Rated Ally 1204 | . . 31 31 34 34 . . . 47 47 49 49 68 . . 45 45 143 1204 1204 1204 Total Orders 109 | . . . . . . . . . 2 12 . 2 16 . . 27 12 37 1 . . STAY 57 | . . . . . . . . . 1 6 . . 6 . . 16 8 19 1 . . ROAM 4 | . . . . . . . . . . . . . . . . . . 4 . . . FOLLOW 43 | . . . . . . . . . 1 6 . . 7 . . 11 4 14 . . . GUARD 3 | . . . . . . . . . . . . . 3 . . . . . . . . EXPLORE 2 | . . . . . . . . . . . . 2 . . . . . . . . . Ally Attacks 115 | . . 3 1 . 16 . . . . 7 . 2 34 . . . . 11 7 24 10 Total Damage 8263 | . . 61 22 . 485 . . . . 124 . 71 2072 . . . . 237 1141 2780 1270 Kills 25 | . . 1 . . 3 . . . . 2 . . 4 . . . . . 4 8 3 Allies Corrupted 2 | . . . . . 1 . . . . . . . 1 . . . . . . . . Allies Melted 2 | . . . . . . . . . . . . . 1 . . . 1 . . . . Intel | -11 -10 -10 -10 -7 -5 -5 -5 -5 -4 -4 -4 -4 -4 -3 -3 -3 -2 -2 -2 -1 -1 ------- Run | Yrd Mat Min Sub Rec Fac Upp Upp Zhi Pro Fac Upp Upp War Pro Res Qua Res Tes Sec Acc Com Robot Analysis Total 10 | . 3 . . 1 . . . 4 . . . . . . . 1 . 1 . . . Derelict Logs Recovered 14 | . . 2 2 . . 2 3 . 1 . 2 2 . . . . . . . . . Drone Launches 2 | . . . . . . . . . . . . 2 . . . . . . . . . Drone Recoveries . | . . . . . . . . . . . . . . . . . . . . . . Exploration | -11 -10 -10 -10 -7 -5 -5 -5 -5 -4 -4 -4 -4 -4 -3 -3 -3 -2 -2 -2 -1 -1 ------------- Run | Yrd Mat Min Sub Rec Fac Upp Upp Zhi Pro Fac Upp Upp War Pro Res Qua Res Tes Sec Acc Com Turns Passed 31687 | 197 1531 1248 4194 872 2003 2881 4023 348 1744 775 1070 819 997 3501 905 792 1094 1217 1029 359 88 Spaces Moved 29343 | 93 759 717 2315 455 1435 2142 2038 177 1666 751 1355 871 890 2314 1287 1674 2735 2129 1958 1266 316 Core 8 | 8 . . . . . . . . . . . . . . . . . . . . . Treads 8040 | 85 759 717 2315 455 335 1231 2038 105 . . . . . . . . . . . . . Legs . | . . . . . . . . . . . . . . . . . . . . . . Wheels 180 | . . . . . 180 . . . . . . . . . . . . . . . . Hover 6861 | . . . . . 567 911 . 72 1666 751 1355 871 668 . . . . . . . . Flight 14254 | . . . . . 353 . . . . . . . 222 2314 1287 1674 2735 2129 1958 1266 316 Fastest Speed 13 | 50 160 160 160 160 46 52 131 72 72 56 62 62 34 39 26 26 17 17 15 15 13 Average Speed 77 | 150 160 160 160 160 91 118 139 114 76 71 62 65 66 94 42 27 24 25 25 15 13 Slowest Speed 357 | 160 160 160 160 250 357 179 140 161 126 141 62 77 114 120 120 28 28 94 107 15 20 Overloaded Moves 238 | . . . . . . . . . . . . . 9 . . . . . 14 . 215 Propulsion Burnouts . | . . . . . . . . . . . . . . . . . . . . . . Robots Hopped 65 | . . . . . . . . . . . . . . . 8 16 1 8 18 7 7 Cave-ins Triggered . | . . . . . . . . . . . . . . . . . . . . . . Teleports 1 | . . . . . . . . . . . . . . 1 . . . . . . . Exploration Rate (%) 72 | 6 96 99 98 99 40 99 98 61 98 13 98 99 90 99 33 98 40 97 70 49 23 Regions Visited 21 Branch Regions 15 Pre-discovered Areas 8 | . 1 . 1 . . 1 . 3 . . 1 . . 1 . . . . . . . Known Exits Taken 16 | . . . . . 1 1 1 1 1 1 1 1 1 1 1 1 1 1 1 1 . Unknown Exits Taken 5 | 1 1 1 1 1 . . . . . . . . . . . . . . . . . Scrap Searched 36 | . . 1 15 . . 3 3 . 5 . 4 3 . 2 . . . . . . . Spaces Dug 329 | . 4 . 22 7 14 62 42 . . . 5 22 2 19 36 11 9 36 19 18 1 Terrain Destroyed 985 | . 4 16 23 8 80 79 63 . 60 5 14 104 17 90 37 11 16 56 74 198 30 Melee 85 | . . . . . . . . . . . . . 1 . 26 11 9 15 14 8 1 Projectile 373 | . 4 . 23 8 15 64 42 . 15 5 14 61 11 53 1 . . 5 23 . 29 AOE 527 | . . 16 . . 65 15 21 . 45 . . 43 5 37 10 . 7 36 37 190 . Terrain Rammed . | . . . . . . . . . . . . . . . . . . . . . . Walls Destroyed . | . . . . . . . . . . . . . . . . . . . . . . Machines Disabled . | . . . . . . . . . . . . . . . . . . . . . . Actions | -11 -10 -10 -10 -7 -5 -5 -5 -5 -4 -4 -4 -4 -4 -3 -3 -3 -2 -2 -2 -1 -1 --------- Run | Yrd Mat Min Sub Rec Fac Upp Upp Zhi Pro Fac Upp Upp War Pro Res Qua Res Tes Sec Acc Com Total 36136 | 127 933 778 2661 553 1873 2384 3146 314 1977 929 1534 1035 1188 3456 1522 1940 3051 2702 2332 1365 336 Wait 4062 | . 43 17 185 31 119 128 1026 96 160 103 116 76 124 913 88 151 58 434 172 22 . Move 29200 | 92 758 716 2314 454 1434 2141 2037 176 1665 750 1354 870 889 2313 1271 1641 2732 2112 1926 1252 303 Hop 56 | . . . . . . . . . . . . . . . 7 16 1 8 13 6 5 Pick Up 348 | 15 18 10 15 2 53 7 3 9 9 9 11 12 16 45 20 24 18 4 26 18 4 Fast Attach 158 | . 1 . 5 . 7 3 . 4 . . . . 5 7 14 15 62 24 11 . . Attach 178 | 7 1 . 6 1 46 3 1 5 4 13 4 6 8 5 11 12 8 2 12 14 9 Detach 29 | . . . . . 10 2 . . 2 2 . . 2 . 3 . 3 1 3 . 1 Swap 306 | . 18 4 15 4 24 3 19 1 27 13 9 4 21 17 13 18 16 26 43 10 1 Drop 402 | . 21 9 21 2 40 11 4 11 7 6 4 12 19 33 24 36 77 29 30 5 1 Fire 1030 | 13 73 22 100 24 140 86 56 12 100 32 34 55 99 118 13 . 2 13 15 17 6 Melee 291 | . . . . . . . . . . . . . 4 . 58 27 74 42 59 21 6 Ram 1 | . . . . . . . . . . 1 . . . . . . . . . . . Kick . | . . . . . . . . . . . . . . . . . . . . . . Crush . | . . . . . . . . . . . . . . . . . . . . . . Escape Stasis 17 | . . . . . . . . . . . . . . . . . . . 17 . . Rewire 38 | . . . . 35 . . . . . . 2 . 1 . . . . . . . . Trap 20 | . . . . . . . . . 3 . . . . 5 . . . 7 5 . . Miscellaneous . | . . . . . . . . . . . . . . . . . . . . . . Route ------- -11/Scrapyard -10/Materials (discovered 4 exits: [*Mat x3] / [*Min]) -10/Mines (discovered 4 exits: [*Mat x2] / [*Exi] / *Sub) -10/Subcaves (discovered 3 exits: *Mat x2 / *Rec) -7/Recycling -5/Factory (discovered 3 exits: *Fac / *Upp x2) -5/Upper Caves -5/Upper Caves (discovered 2 exits: *Fac / *Zhi) -5/Zhirov -4/Proximity Caves -4/Factory (discovered 3 exits: *Upp x2 / Arm) -4/Upper Caves -4/Upper Caves (discovered 2 exits: *Res / *War) -4/Warlord -3/Proximity Caves -3/Research (discovered 5 exits: *Res x3 / *Qua x2) -3/Quarantine -2/Research (discovered 2 exits: *Acc / *Tes) -2/Testing (discovered 2 exits: *Acc / *Sec) -2/Section 7 -1/Access -1/Command Tau Ceti IV Orbit History --------- Turn | Location | Event 3 | -11/Scrapyard | Discovered new exit (range 15) 198 | -11/Scrapyard | Entered Materials 325 | -10/Materials | Build established: Mutant 389 | -10/Materials | Discovered new exit (range 15) 667 | -10/Materials | Discovered new exit (range 5) 1084 | -10/Materials | Central database locked down 1119 | -10/Materials | Discovered new exit (range 16) 1407 | -10/Materials | Discovered new exit (range 9) 1429 | -10/Materials | Repaired Imp. Treads 1729 | -10/Materials | Entered Mines 1870 | -10/Mines | Joined a pair of Derelicts in attacking an 0b10 outpost 1947 | -10/Mines | Learned Materials trap positions 2087 | -10/Mines | Learned Materials interactive machine intel 2292 | -10/Mines | Discovered new exit (range 15) 2510 | -10/Mines | Discovered new exit (range 12) 2675 | -10/Mines | Deemed a non-threat by the Exiles lab entrance 2675 | -10/Mines | Discovered new exit (range 5) 2961 | -10/Mines | Discovered new exit (range 10) 2977 | -10/Mines | Entered Subcaves 2977 | -10/Subcaves | Accompanied by 2 allies 2982 | -10/Subcaves | Led the pair of lost Derelicts to an unsafe place 3039 | -10/Subcaves | Learned location of Zion (-6) 3165 | -10/Subcaves | Ambushed by swarm of Subdwellers 4266 | -10/Subcaves | Learned Materials machine intel 4532 | -10/Subcaves | Core integrity fell below 50% 5152 | -10/Subcaves | Discovered new exit (range 13) 5190 | -10/Subcaves | Identified exit to Materials 6009 | -10/Subcaves | Discovered exit to Materials (range 10) 6111 | -10/Subcaves | Visited 4L-MR0's lab 6131 | -10/Subcaves | Found Gun Armor 6132 | -10/Subcaves | Attached Gun Armor, gained temporary slots: Weapon x2 6420 | -10/Subcaves | Build established: Scavenger-Gunner 6477 | -10/Subcaves | Ambushed by Subdweller buried in earth 7058 | -10/Subcaves | Discovered new exit (range 11) 7171 | -10/Subcaves | Entered Recycling 7186 | -7/Recycling | Found Scrap Engine 7699 | -7/Recycling | Discovered new exit (range 4) 8043 | -7/Recycling | Entered Factory 8043 | -5/Factory | Accompanied by 5 allies 8043 | -5/Factory | Evolved 10 slots: Propulsion x3, Utility x6, Weapon x1 8339 | -5/Factory | Garrison activated, responded to threat 8403 | -5/Factory | Lost 4 allies 8578 | -5/Factory | Lost 3 parts (1u2w) 8788 | -5/Factory | Lost 3 parts (3n) 8958 | -5/Factory | Lost 3 parts (1p1n1w) 9201 | -5/Factory | Discovered new exit (range 14) 9250 | -5/Factory | Cargo convoy interrupted 9310 | -5/Factory | Found Prototype Protection 9310 | -5/Factory | Identified Active Cooling Armor 9362 | -5/Factory | Lost 6 allies 9518 | -5/Factory | Identified exit to Factory 9543 | -5/Factory | First assault squad dispatched 9726 | -5/Factory | Build established: Gunner 9928 | -5/Factory | Identified exit to Upper Caves 10046 | -5/Factory | Entered Upper Caves 10078 | -5/Upper Caves | Lost 4 parts (1p1u2w) 10273 | -5/Upper Caves | Encountered a Warlord checkpoint 10334 | -5/Upper Caves | Learned location of Armory (-4) 10339 | -5/Upper Caves | Attracted the attention of an 0b10 checkpoint 10608 | -5/Upper Caves | Discovered new exit (range 11) 10613 | -5/Upper Caves | Identified exit to Upper Caves 12708 | -5/Upper Caves | Build established: Scavenger-Gunner 12927 | -5/Upper Caves | Entered another Upper Caves area 12983 | -5/Upper Caves | Attracted the attention of an 0b10 checkpoint 13026 | -5/Upper Caves | Discovered exit to Factory (range 5) 13073 | -5/Upper Caves | Learned Factory security intel 13395 | -5/Upper Caves | Learned 4 Factory zone layouts 13850 | -5/Upper Caves | Learned Factory terminal intel 14035 | -5/Upper Caves | Discovered new exit (range 15) 14058 | -5/Upper Caves | Identified exit to Zhirov 16950 | -5/Upper Caves | Entered Zhirov 16950 | -5/Zhirov | Discovered new exit (range 3) 16952 | -5/Zhirov | Identified exit to Proximity Caves 17008 | -5/Zhirov | Learned location of Testing (-2) 17008 | -5/Zhirov | Learned location of Quarantine (-3) 17008 | -5/Zhirov | Learned location of Command (-1) 17059 | -5/Zhirov | Found Alien Artifact 17059 | -5/Zhirov | Identified Integrated Reactor 17059 | -5/Zhirov | Installed Integrated Reactor, increased core energy generation (+10) 17271 | -5/Zhirov | Found Alien Artifact 17298 | -5/Zhirov | Entered Proximity Caves 17526 | -4/Proximity Caves | Core integrity fell below 50% 17702 | -4/Proximity Caves | Learned Research terminal intel 17781 | -4/Proximity Caves | Spotted B-86 Titan 17877 | -4/Proximity Caves | Build established: Skirmisher 18098 | -4/Proximity Caves | Discovered exit to Factory (range 7) 18407 | -4/Proximity Caves | Attracted the attention of an 0b10 checkpoint 18562 | -4/Proximity Caves | Attracted the attention of an 0b10 outpost 18583 | -4/Proximity Caves | Build established: Construct 19042 | -4/Proximity Caves | Entered Factory 19042 | -4/Factory | Accompanied by 2 allies 19042 | -4/Factory | Evolved 2 slots: Propulsion x1, Utility x1 19045 | -4/Factory | Loaded intel: 26 terminal locations 19237 | -4/Factory | Discovered new exit (range 13) 19262 | -4/Factory | Identified exit to Upper Caves 19281 | -4/Factory | Identified exit to Armory 19328 | -4/Factory | Build established: Skirmisher 19784 | -4/Factory | Lost 3 parts (2u1w) 19817 | -4/Factory | Entered Upper Caves 19935 | -4/Upper Caves | Found Alien Artifact 20021 | -4/Upper Caves | Identified exit to Upper Caves 20211 | -4/Upper Caves | Attracted the attention of an 0b10 checkpoint 20308 | -4/Upper Caves | Learned Armory emergency access door positions 20308 | -4/Upper Caves | Learned Armory stockpile data 20308 | -4/Upper Caves | Learned Research security intel 20308 | -4/Upper Caves | Learned Extension terminal intel 20701 | -4/Upper Caves | Attracted the attention of an 0b10 outpost 20736 | -4/Upper Caves | Lost 4 allies 20887 | -4/Upper Caves | Entered another Upper Caves area 20887 | -4/Upper Caves | Accompanied by 2 allies 20888 | -4/Upper Caves | Identified exit to Warlord 20891 | -4/Upper Caves | Learned location of 2 exits from Research 20933 | -4/Upper Caves | Learned location of 1 exit from Research 21097 | -4/Upper Caves | Discovered new exit (range 9) 21110 | -4/Upper Caves | Identified exit to Research 21201 | -4/Upper Caves | Attracted the attention of an 0b10 checkpoint 21421 | -4/Upper Caves | Spotted B-86 Titan 21451 | -4/Upper Caves | Destroyed B-86 Titan 21706 | -4/Upper Caves | Entered Warlord 21732 | -4/Warlord | System corruption cleaned by Quarantine Array 21945 | -4/Warlord | Build established: Scavenger-Skirmisher 22096 | -4/Warlord | Met Warlord 22121 | -4/Warlord | Warlord's base attacked by MAIN.C 22155 | -4/Warlord | Found Prototype Device 22156 | -4/Warlord | Identified Exp. Phase Shifter 22171 | -4/Warlord | Found Prototype Hackware 22443 | -4/Warlord | Warlord forces counterattacked 22447 | -4/Warlord | Lost 3 allies 22485 | -4/Warlord | Spotted Executioner 22498 | -4/Warlord | Spotted Executioner 22500 | -4/Warlord | Spotted Executioner 22506 | -4/Warlord | Destroyed Executioner 22516 | -4/Warlord | Found Prototype Device 22517 | -4/Warlord | Found Prototype Processor 22523 | -4/Warlord | Identified Adv. Kinecellerator 22528 | -4/Warlord | Lost 3 allies 22534 | -4/Warlord | Identified Exp. Core Analyzer 22538 | -4/Warlord | Spotted Striker 22538 | -4/Warlord | Spotted Striker 22545 | -4/Warlord | Destroyed Striker 22558 | -4/Warlord | Spotted Executioner 22629 | -4/Warlord | Spotted B-90 Cyclops 22643 | -4/Warlord | Discovered new exit (range 9) 22661 | -4/Warlord | Destroyed B-90 Cyclops 22663 | -4/Warlord | Spotted Executioner 22668 | -4/Warlord | Spotted Executioner 22672 | -4/Warlord | Identified exit to Proximity Caves 22689 | -4/Warlord | Destroyed Executioner 22697 | -4/Warlord | Lost 24 allies 22703 | -4/Warlord | Entered Proximity Caves 22713 | -3/Proximity Caves | Spotter reported a threat 22805 | -3/Proximity Caves | Build established: Scavenger-Tank 22898 | -3/Proximity Caves | Spotter reported a threat 22970 | -3/Proximity Caves | Acquired the password to a Derelict Tinkerer's latest research 23109 | -3/Proximity Caves | Identified Transdimensional Reconstructor 23109 | -3/Proximity Caves | Warped through subspace 23221 | -3/Proximity Caves | Core integrity fell below 50% 23389 | -3/Proximity Caves | Spotted B-86 Titan 23599 | -3/Proximity Caves | Discovered exit to Research (range 12) 24473 | -3/Proximity Caves | Destroyed B-86 Titan 24721 | -3/Proximity Caves | Found Prototype Special Weapon 24807 | -3/Proximity Caves | Attracted the attention of an 0b10 checkpoint 25554 | -3/Proximity Caves | Attracted the attention of an 0b10 base 25562 | -3/Proximity Caves | Identified Dimensional Node Initializer 25562 | -3/Proximity Caves | Initialized slip node 25607 | -3/Proximity Caves | Learned Research garrison access intel 25607 | -3/Proximity Caves | Learned Factory emergency access door positions 25607 | -3/Proximity Caves | Learned Research trap positions 26204 | -3/Proximity Caves | Entered Research 26204 | -3/Research | Evolved 2 slots: Propulsion x1, Utility x1 26205 | -3/Research | Identified exit to Quarantine 26205 | -3/Research | Identified exit to Research 26206 | -3/Research | Loaded intel: 82 trap records 26208 | -3/Research | Loaded intel: 20 terminal locations 26209 | -3/Research | Loaded intel: 3 garrison access locations 26481 | -3/Research | Identified System Mapper 26499 | -3/Research | Search patrols dispatched 26529 | -3/Research | Discovered exit to Research (range 7) 26764 | -3/Research | Identified Molecular Deconstructor 27109 | -3/Research | Entered Quarantine 27186 | -3/Quarantine | Repaired Centrium Light Armor Plating? 27234 | -3/Quarantine | Found Alien Energy Cannon 27253 | -3/Quarantine | Found Alien Slashing Weapon 27255 | -3/Quarantine | Identified Sigix Broadsword 27261 | -3/Quarantine | Discovered exit to Research (range 20) 27267 | -3/Quarantine | Found Alien Artifact 27267 | -3/Quarantine | Identified Subatomic Replicator 27279 | -3/Quarantine | Found Prototype Processor 27279 | -3/Quarantine | Identified Exp. Signal Interpreter 27339 | -3/Quarantine | Found Prototype Device 27343 | -3/Quarantine | Found Prototype Device 27349 | -3/Quarantine | Identified Exp. Thermal Shield (x2) 27416 | -3/Quarantine | Found Alien Artifact 27416 | -3/Quarantine | Identified Phase Armor 27485 | -3/Quarantine | Found Alien Artifact 27485 | -3/Quarantine | Identified Phase Redirector 27552 | -3/Quarantine | Found Prototype Launcher 27553 | -3/Quarantine | Identified Adv. Micro-nuke Launcher 27559 | -3/Quarantine | Found Adv. Micro-nuke Launcher 27566 | -3/Quarantine | Met incapacitated Sigix Warrior 27566 | -3/Quarantine | Lockdown squad dispatched 27567 | -3/Quarantine | Acquired the access code to the Sigix quarantine chamber 27568 | -3/Quarantine | Unlocked Sigix quarantine chamber 27669 | -3/Quarantine | Spotted Lightning 27696 | -3/Quarantine | Build established: Hacker-Ninja 27718 | -3/Quarantine | Found Alien Artifact 27720 | -3/Quarantine | Identified Core Reset Matrix 27720 | -3/Quarantine | Identified Core Cannon 27720 | -3/Quarantine | Used Core Reset Matrix 27724 | -3/Quarantine | Sensed 4 artifacts in vicinity 27890 | -3/Quarantine | Discovered exit to Research (range 5) 27901 | -3/Quarantine | Entered Research 27901 | -2/Research | Accompanied by 2 allies 27901 | -2/Research | Warlord forces began assault on 0b10 27901 | -2/Research | Evolved 2 slots: Propulsion x1, Utility x1 27958 | -2/Research | Found Prototype Processor 27959 | -2/Research | Identified Exp. Melee Analysis Suite 27968 | -2/Research | Found Exp. Melee Analysis Suite 27975 | -2/Research | Found Exp. Melee Analysis Suite 28011 | -2/Research | Research machine network offline 28018 | -2/Research | Repaired Impulse Thruster Array? 28036 | -2/Research | Lost 5 allies 28076 | -2/Research | Met up with Warlord 28175 | -2/Research | Found Prototype Processor 28175 | -2/Research | Identified Spectral Analyzer 28227 | -2/Research | Borebot progress halted 28241 | -2/Research | Lost 6 allies 28262 | -2/Research | Spotted B-90 Cyclops 28335 | -2/Research | Discovered new exit (range 15) 28338 | -2/Research | Identified exit to Access 28345 | -2/Research | Discovered new exit (range 23) 28363 | -2/Research | Borebot progress halted 28452 | -2/Research | Spotted B-90 Cyclops 28531 | -2/Research | Spotted Executioner 28674 | -2/Research | Spotted Executioner 28731 | -2/Research | Spotted Striker 28737 | -2/Research | Found Prototype Device 28737 | -2/Research | Identified Adv. Kinecellerator 28740 | -2/Research | Found Prototype Processor 28740 | -2/Research | Identified Exp. Core Analyzer 28910 | -2/Research | Warlord invited to help at Command 28943 | -2/Research | Spotted Striker 28984 | -2/Research | Identified exit to Testing 28995 | -2/Research | Entered Testing 28995 | -2/Testing | Accompanied by 2 allies 29045 | -2/Testing | Found Prototype Device 29046 | -2/Testing | Identified 2N-1CE's Frost Array 29077 | -2/Testing | Fabricated Imp. Q-thruster? 29109 | -2/Testing | Fabricated Exp. Sensor Array? 29110 | -2/Testing | Lost 4 allies 29289 | -2/Testing | Spotted Striker 29289 | -2/Testing | Spotted Striker 29318 | -2/Testing | Discovered exit to Access (range 7) 29320 | -2/Testing | Spotted PG-EL4INNYLU2 29354 | -2/Testing | Found Prototype Energy Gun 29354 | -2/Testing | Identified Hyp. EM Gauss Rifle 29450 | -2/Testing | Found Prototype Device 29450 | -2/Testing | Identified AEGIS Remote Shield 29688 | -2/Testing | Build established: Wizard-Ninja 30071 | -2/Testing | Rewired PG-EL4INNYLU2 30130 | -2/Testing | Spotted Fortress 30166 | -2/Testing | Discovered new exit (range 6) 30167 | -2/Testing | Identified exit to Section 7 30212 | -2/Testing | Entered Section 7 30212 | -2/Section 7 | Accompanied by 4 allies 30213 | -2/Section 7 | Sensed 18 artifacts in vicinity 30385 | -2/Section 7 | Repaired Broken Cloaking Device? 30743 | -2/Section 7 | Spotted B-90 Cyclops 30810 | -2/Section 7 | Used Subatomic Replicator to create Supercharged Integrated Reactor 30812 | -2/Section 7 | Installed Supercharged Integrated Reactor, increased core energy generation (+15) 30926 | -2/Section 7 | Spotted Executioner 30926 | -2/Section 7 | Spotted Executioner 30941 | -2/Section 7 | Spotted B-99 Colossus 30954 | -2/Section 7 | Found Terrabomb 30958 | -2/Section 7 | Found Terrabomb 31035 | -2/Section 7 | Found Terrabomb 31047 | -2/Section 7 | Destroyed Executioner 31047 | -2/Section 7 | Destroyed Executioner 31080 | -2/Section 7 | Spotted Executioner 31081 | -2/Section 7 | Spotted Executioner 31105 | -2/Section 7 | Found LRC Energy Well 31105 | -2/Section 7 | Installed LRC Energy Well, increased energy storage capacity (+250) 31108 | -2/Section 7 | Found LRC Matter Compressor 31108 | -2/Section 7 | Installed LRC Matter Compressor, increased matter storage capacity (+125) 31139 | -2/Section 7 | Activated Sigix Exoskeleton 31139 | -2/Section 7 | Received instructions from Sigix Warrior 31208 | -2/Section 7 | Found Integrity Redistributor 31230 | -2/Section 7 | Sigix Exoskeleton integrity reduced to 80% 31241 | -2/Section 7 | Entered Access 31241 | -1/Access | Accompanied by 1 ally (Sigix Warrior) 31241 | -1/Access | Evolved 2 slots: Power x1, Propulsion x1 31261 | -1/Access | Energy Cycler disabled 31382 | -1/Access | Destroyed 8 combat bots 31399 | -1/Access | Used Integrity Redistributor, redistributed integrity from core (-118) 31479 | -1/Access | Destroyed 8 combat bots 31493 | -1/Access | Spotted B-99 Colossus 31509 | -1/Access | Spotted B-99 Colossus 31520 | -1/Access | Build established: Alien-Ninja 31562 | -1/Access | Spotted Executioner 31562 | -1/Access | Spotted Striker 31573 | -1/Access | Sigix Exoskeleton integrity reduced to 60% 31588 | -1/Access | Discovered new exit (range 8) 31589 | -1/Access | Identified exit to Command 31600 | -1/Access | Entered Command 31600 | -1/Command | Accompanied by 1 ally (Sigix Warrior) 31608 | -1/Command | Lost 4 parts (1p2u1w) 31633 | -1/Command | High security lockdown imminent 31662 | -1/Command | Lost 3 parts (1p1u1w) 31668 | -1/Command | Spotted Alpha 7 31668 | -1/Command | Spotted Striker 31668 | -1/Command | Spotted Executioner 31669 | -1/Command | Spotted Executioner 31671 | -1/Command | Spotted B-99 Colossus 31672 | -1/Command | Discovered new exit (range 20) 31673 | -1/Command | Spotted Striker 31673 | -1/Command | Spotted Executioner 31673 | -1/Command | Spotted Executioner 31673 | -1/Command | Spotted B-99 Colossus 31673 | -1/Command | Spotted Alpha 7 31677 | -1/Command | Destroyed Executioner 31677 | -1/Command | Destroyed Executioner 31680 | -1/Command | Core integrity fell below 50% 31685 | -1/Command | Identified exit to Surface 31688 | *** | Destroyed 0b10! Last Messages --------------- 31685_ Slug penetrates Access Shell. 31686_ Stasis field depleted. 31686_ Slug penetrates Access Shell. 31686_ Stasis field depleted. 31686_ Sigix Warrior triggered Stasis Trap. 31686_ A bubble of rippling energy engulfs the area. 31686_ Field strength at 54. 31686_ P-80 Master resets Alpha 7, system corruption cleaned. 31686_ Beam penetrates Executioner. 31686_ Executioner suffers critical hit (Destroy). 31686_ Destroyed Enh. Biometal Leg. 31686_ Beam penetrates Door. 31687_ Field strength at 8. 31687_ Field strength at 45. 31688_ Stasis field depleted. 31688_ Penetrated by Slug. 31688_ Slug penetrates Access Shell. 31688_ Field strength at 37. 31688_ Slug penetrates Sigix Warrior. [Achievement: Partners In Destruction] Map ----- +----------------------------------------------------+ | ???????????????????????????????????????????????? | | ???????????????????????????????????????????????? | | ???????????????????????????????????????????????? | | ???????????????????????????????????????????????? | | ????????????????????????????????????????????????? | | ????????????????????????????????????????????????? | | ????????????????????????????????????????????????? | | ????????????????????????????????????????????????? | | ?????????????????????????????????????????????????? | | ?????????????????????????????????????????????????? | | ?????????????????????????????????????????????????? | | ?????????????????????????????????????????????????? | | ?#######?????????????????????????????????????????? | | ? #?????????????????????????????????????????? | | #????????????????????###??????????????????? | | "" #??????????????????## ???????????????????? | | """ #?????????????????# ????????????????????? | | T" #???????????????## #?????????????????????? | | """ #?????????????###;"#??????????????????????? | | ? "" #??????????####;;;#######?????????????????? | | ? #??????????# #?????????????????? | | ?? #??#########BB #?????????????????? | | ??######### #%# # ;BB #?????????????????? | | ######### 7 " #?????????????????? | | " ^ #?????????????????? | | + ^ ^ " "@ " #?????????????????? | | + "" #????? #??????????? | | " ^% [%! X ### #??????????? | | ######### K%=! ^ K ;;; #?###??????? | | %;%;; ! ;!; ;BB^ ### +? ??????? | | ;;%;;######%BB #???? ###/#####??? | | 7%#####????#; #??????# ! #??? | | [ "#????????####;##########??????# #??? | | #????????????###???????????????# "" #??? | | #??????????????????????????????# """#??? | | #??????????????????????????????# T"#??? | | #??????????????????????????????# """#??? | | ########??????????????????????????????# "" #??? | | ##############????????????????????????# #??? | | # ##########???????????????# #??? | | # !! # #???????????????# #??? | | + !! # #???????????????# #??? | | # !! # #???????????????# #### | | # #"" #####+########### + | | # #"" ## / ## | | #"""" #"" ## # ## | | #"""" #T # ## | | #"""" #"" + ## | | #"""" #"" ####/########+##### | | # #"" #? ???????????# | +----------------------------------------------------+ Best States ------------- Heat Dissipation 152 Energy Generation 64 Energy Capacity 660 Matter Stores 375 Matter Capacity 600 Sight Range 24 Robot Scan Range 20 Terrain Scan Range 20 Terrain Scan Density 210 Jamming Range 16 Cloak Strength 3 Power Amplification 40 Additional Mass Support 9 EM Shielding 4 Corruption Block 7 Armor Coverage 860 Resistance: KI 20 Resistance: TH 30 Core Shielding 20 Propulsion Shielding 66 Phase Shifting 20 Evasion (%) 95 Targeting Accuracy 8 Melee Accuracy 20 Launcher Accuracy 40 Target Analysis 6 Recoil Reduction 5 Energy Filtering 50 Particle Charging 30 Offensive Hacking 60 Defensive Hacking 12 Authchip Count 1 Item Schematics ----------------- Lrn. Sensor Array | -3/Quarantine | Hacked Exp. Sensor Array | -3/Quarantine | Hacked Exp. Terrain Scanner | -2/Testing | Hacked Exp. Terrain Scan Processor | -2/Testing | Hacked Exp. Melee Analysis Suite | -2/Section 7 | Scanalyzed Cloaking Device | -2/Section 7 | Scanalyzed Lgt. Antimatter Reactor | -2/Section 7 | Scanalyzed Robot Schematics ------------------ None Fabricated ------------ Imp. Q-thruster | x1 | -2/Testing | Preloaded Exp. Sensor Array | x1 | -2/Testing Alien Tech Used ----------------- Integrated Reactor Transdimensional Reconstructor Dimensional Node Initializer Sigix Broadsword Subatomic Replicator Phase Armor Phase Redirector Core Reset Matrix Core Cannon Supercharged Integrated Reactor LRC Energy Well LRC Matter Compressor Integrity Redistributor Achievements -------------- Partners In Destruction Challenges ------------ None Game ------ Seed DecoyVisualPenetrator Manual? 0 Play Time 09:25:12 Cumulative 627.4 hours Start 2024.04.05 @ 18:08:04 End 2024.04.15 @ 18:35:12 Sessions 19 Manual Loads 0 Difficulty Rogue Special Mode None Game No. 126 Rogue 103 Adventurer 23 Explorer 0 Win Type 3 Total 24 Types 15/1/3/2/1/0/1/1/0 Lore% 90 Gallery% 92 Achievement% 83 Wizard Run 0 Options --------- Layout 0 ASCII 0 Keyboard 0 Movement Mouse Keybinds 0 Fullscreen 1 Font 36/Smallcaps Map View 76x50 Zoom Use 0% Tactical HUD 1 Map Filters SHIFT_HUE(340) Filters NONE Steam 1 RUN: 16e61864-3636-4978-8b65-f361c329dd23